fUSD/lending_fUSD_20260626
["ID","MTS","AMOUNT","RATE_DAILY","PERIOD"]
[426452441,1782406283000,-10000.0,0.00036,2]
[426452444,1782406283000,-1260.0,0.00036,120]
[426452442,1782406283000,-2121.0,0.00036,120]
[426452443,1782406283000,-2266.0,0.00036,120]
[426452449,1782406283000,-150.0,0.00036145,7]
[426452436,1782406283000,-5000.0,0.00036,30]
[426452445,1782406283000,-10000.0,0.00036,120]
[426452450,1782406283000,-629.0,0.00036167,4]
[426452502,1782406284000,-209.77,0.00036532,120]
[426452526,1782406284000,-335.772208,0.000367,7]
[426452509,1782406284000,-500.0,0.0003655,30]
[426452519,1782406284000,-4813.8,0.00036698,2]
[426452518,1782406284000,-742.1,0.00036698,30]
[426452503,1782406284000,-857.38,0.00036532,120]
[426452505,1782406284000,-500.0,0.0003655,5]
[426452504,1782406284000,-100485.17139119,0.00036542,30]
[426452506,1782406284000,-500.0,0.0003655,30]
[426452507,1782406284000,-500.0,0.0003655,30]
[426452508,1782406284000,-500.0,0.0003655,30]
[426452511,1782406284000,-200.0,0.0003658,2]
[426452523,1782406284000,-335.772208,0.000367,7]
[426452512,1782406284000,-1250.0,0.00036617,2]
[426452513,1782406284000,-629.0,0.00036628,4]
[426452515,1782406284000,-174.5,0.00036638,120]
[426452517,1782406284000,-551.0,0.0003668,12]
[426452516,1782406284000,-10000.0,0.00036667,2]
[426452514,1782406284000,-159.366371,0.00036637,110]
[426452521,1782406284000,-332.772208,0.000367,7]
[426452520,1782406284000,-362.772215,0.000367,7]
[426452522,1782406284000,-329.772208,0.000367,7]
[426452525,1782406284000,-329.772208,0.000367,7]
[426452524,1782406284000,-332.772208,0.000367,7]
[426452500,1782406284000,-656.26,0.00036532,120]
[426452510,1782406284000,-500.0,0.0003655,30]
[426452501,1782406284000,-270.59,0.00036532,120]
[426452483,1782406284000,-44628.61425863,0.00036499,2]
[426452499,1782406284000,-370.24,0.00036532,120]
[426452472,1782406284000,-151.0,0.0003641,2]
[426452471,1782406284000,-482.49,0.0003641,2]
[426452475,1782406284000,-1250.0,0.0003643,2]
[426452474,1782406284000,-151.54,0.0003641,2]
[426452482,1782406284000,-151.0,0.00036499,2]
[426452476,1782406284000,-150.0,0.00036496,2]
[426452478,1782406284000,-185.24,0.00036499,2]
[426452473,1782406284000,-151.0,0.0003641,2]
[426452480,1782406284000,-185.24,0.00036499,2]
[426452477,1782406284000,-151.0,0.00036499,2]
[426452479,1782406284000,-644.42,0.00036499,2]
[426452481,1782406284000,-151.0,0.00036499,2]
[426452498,1782406284000,-573.73,0.00036501,2]
[426452485,1782406284000,-151.0,0.00036499,2]
[426452495,1782406284000,-26118.33924343,0.000365,30]
[426452487,1782406284000,-482.38,0.00036499,2]
[426452488,1782406284000,-186.33,0.00036499,2]
[426452486,1782406284000,-573.7,0.00036499,2]
[426452489,1782406284000,-151.0,0.00036499,2]
[426452490,1782406284000,-800.0,0.000365,7]
[426452493,1782406284000,-1020.0,0.000365,60]
[426452491,1782406284000,-800.0,0.000365,7]
[426452494,1782406284000,-1354.35764899,0.000365,15]
[426452492,1782406284000,-800.0,0.000365,7]
[426452496,1782406284000,-100000.0,0.000365,11]
[426452497,1782406284000,-3132.42,0.000365,30]
[426452484,1782406284000,-644.42,0.00036499,2]
[426452531,1782406284000,-329.772208,0.000367,14]
[426452550,1782406284000,-318.559184,0.000367,14]
[426452528,1782406284000,-329.772208,0.000367,7]
[426452560,1782406284000,-6575.99,0.000368,120]
[426452562,1782406284000,-10978.75,0.000368,120]
[426452561,1782406284000,-1847.99,0.000368,120]
[426452565,1782406284000,-16146.36300645,0.000368,120]
[426452564,1782406284000,-2700000.0,0.000368,2]
[426452567,1782406284000,-135935.0,0.00036803,60]
[426452568,1782406284000,-750.0,0.00036832,7]
[426452566,1782406284000,-944.0,0.000368,13]
[426452569,1782406284000,-750.0,0.00036832,7]
[426452570,1782406284000,-750.0,0.00036832,7]
[426452577,1782406284000,-750.0,0.00036832,7]
[426452574,1782406284000,-750.0,0.00036832,7]
[426452573,1782406284000,-750.0,0.00036832,7]
[426452571,1782406284000,-750.0,0.00036832,7]
[426452572,1782406284000,-750.0,0.00036832,7]
[426452575,1782406284000,-750.0,0.00036832,7]
[426452579,1782406284000,-750.0,0.00036832,7]
[426452578,1782406284000,-750.0,0.00036832,7]
[426452580,1782406284000,-750.0,0.00036832,7]
[426452581,1782406284000,-750.0,0.00036832,7]
[426452585,1782406284000,-750.0,0.00036832,7]
[426452584,1782406284000,-750.0,0.00036832,7]
[426452582,1782406284000,-750.0,0.00036832,7]
[426452583,1782406284000,-750.0,0.00036832,7]
[426452530,1782406284000,-332.772208,0.000367,14]
[426452563,1782406284000,-40856.8,0.000368,120]
[426452559,1782406284000,-2608.65,0.00036793,2]
[426452576,1782406284000,-750.0,0.00036832,7]
[426452558,1782406284000,-170.0,0.00036785,7]
[426452557,1782406284000,-653.86,0.0003678,120]
[426452529,1782406284000,-362.772214,0.000367,14]
[426452527,1782406284000,-332.772208,0.000367,7]
[426452533,1782406284000,-332.772208,0.000367,14]
[426452532,1782406284000,-335.772208,0.000367,14]
[426452534,1782406284000,-329.772208,0.000367,14]
[426452539,1782406284000,-318.559184,0.000367,7]
[426452536,1782406284000,-332.772208,0.000367,14]
[426452540,1782406284000,-315.559184,0.000367,7]
[426452537,1782406284000,-329.772208,0.000367,14]
[426452538,1782406284000,-342.559191,0.000367,7]
[426452542,1782406284000,-318.559184,0.000367,7]
[426452541,1782406284000,-321.559184,0.000367,7]
[426452535,1782406284000,-335.772208,0.000367,14]
[426452543,1782406284000,-315.559184,0.000367,7]
[426452555,1782406284000,-9560.90975668,0.00036741,30]
[426452544,1782406284000,-321.559184,0.000367,7]
[426452556,1782406284000,-629.22372068,0.0003677,120]
[426452552,1782406284000,-321.559184,0.000367,14]
[426452547,1782406284000,-318.559184,0.000367,14]
[426452553,1782406284000,-318.559184,0.000367,14]
[426452551,1782406284000,-315.559184,0.000367,14]
[426452554,1782406284000,-403.7757733,0.000367,120]
[426452549,1782406284000,-321.559184,0.000367,14]
[426452546,1782406284000,-342.559191,0.000367,14]
[426452545,1782406284000,-318.559184,0.000367,7]
[426452548,1782406284000,-315.559184,0.000367,14]
[426452613,1782406285000,-659.0,0.00036832,7]
[426452605,1782406285000,-750.0,0.00036832,7]
[426452606,1782406285000,-750.0,0.00036832,7]
[426452609,1782406285000,-750.0,0.00036832,7]
[426452610,1782406285000,-750.0,0.00036832,7]
[426452608,1782406285000,-750.0,0.00036832,7]
[426452607,1782406285000,-750.0,0.00036832,7]
[426452620,1782406285000,-23950.61516786,0.000369,60]
[426452615,1782406285000,-150.0,0.00036858,120]
[426452624,1782406285000,-1322.12,0.00036932,22]
[426452616,1782406285000,-155.912964,0.00036877,120]
[426452621,1782406285000,-198.4,0.000369,120]
[426452614,1782406285000,-150.0,0.00036858,120]
[426452622,1782406285000,-100000.0,0.0003691,90]
[426452602,1782406285000,-750.0,0.00036832,7]
[426452623,1782406285000,-100000.0,0.00036911,100]
[426452612,1782406285000,-750.0,0.00036832,7]
[426452600,1782406285000,-750.0,0.00036832,7]
[426452598,1782406285000,-750.0,0.00036832,7]
[426452604,1782406285000,-750.0,0.00036832,7]
[426452619,1782406285000,-67707.17703701,0.000369,120]
[426452588,1782406285000,-750.0,0.00036832,7]
[426452587,1782406285000,-750.0,0.00036832,7]
[426452586,1782406285000,-750.0,0.00036832,7]
[426452590,1782406285000,-750.0,0.00036832,7]
[426452599,1782406285000,-750.0,0.00036832,7]
[426452589,1782406285000,-750.0,0.00036832,7]
[426452603,1782406285000,-750.0,0.00036832,7]
[426452597,1782406285000,-750.0,0.00036832,7]
[426452591,1782406285000,-750.0,0.00036832,7]
[426452592,1782406285000,-750.0,0.00036832,7]
[426452594,1782406285000,-750.0,0.00036832,7]
[426452593,1782406285000,-750.0,0.00036832,7]
[426452596,1782406285000,-750.0,0.00036832,7]
[426452601,1782406285000,-750.0,0.00036832,7]
[426452611,1782406285000,-750.0,0.00036832,7]
[426452595,1782406285000,-750.0,0.00036832,7]
[426452617,1782406285000,-10202.6765321,0.000369,30]
[426452627,1782406285000,-284.37,0.00036932,120]
[426452626,1782406285000,-180.56,0.00036932,120]
[426452647,1782406285000,-809.0,0.00037,120]
[426452649,1782406285000,-9570.73173,0.00037,120]
[426452648,1782406285000,-1000.0,0.00037,120]
[426452652,1782406285000,-952.87059191,0.00037,120]
[426452653,1782406285000,-10000.000001,0.00037,30]
[426452656,1782406285000,-15131.6352994,0.00037,120]
[426452651,1782406285000,-170.16560393,0.00037,2]
[426452643,1782406285000,-343.26,0.00036993,7]
[426452650,1782406285000,-500.0,0.00037,120]
[426452654,1782406285000,-297.0,0.00037,7]
[426452659,1782406285000,-3264.09065019,0.00037,7]
[426452658,1782406285000,-200.0,0.00034616,30]
[426452660,1782406285000,-614.90132515,0.00031507,7]
[426452661,1782406285000,-980.19965485,0.00031507,7]
[426452618,1782406285000,-153.95,0.000369,30]
[426452662,1782406285000,-475.81455032,0.00037,7]
[426452657,1782406285000,-1431359.40365484,0.00037,7]
[426452642,1782406285000,-215.99,0.00036993,7]
[426452655,1782406285000,-60000.0,0.00037,30]
[426452644,1782406285000,-50000.0,0.00037,65]
[426452628,1782406285000,-194.01,0.00036932,120]
[426452625,1782406285000,-170.66,0.00036932,120]
[426452645,1782406285000,-548.11265704,0.00037,30]
[426452636,1782406285000,-291.52,0.00036932,120]
[426452629,1782406285000,-168.52,0.00036932,120]
[426452631,1782406285000,-186.5,0.00036932,120]
[426452634,1782406285000,-152.26,0.00036932,120]
[426452632,1782406285000,-519.92,0.00036932,120]
[426452630,1782406285000,-962.09,0.00036932,120]
[426452635,1782406285000,-150.02,0.00036932,120]
[426452637,1782406285000,-164.38,0.00036932,120]
[426452639,1782406285000,-819.0,0.00036948,7]
[426452641,1782406285000,-203.41,0.00036962,60]
[426452646,1782406285000,-11553.30956941,0.00037,30]
[426452633,1782406285000,-191.95,0.00036932,120]
[426452638,1782406285000,-161.369381,0.00036938,113]
[426452640,1782406285000,-153525.97,0.0003695,90]
[426452688,1782406286000,-13484.63883423,0.00037,120]
[426452696,1782406286000,-500.0,0.00037,13]
[426452692,1782406286000,-294.0,0.00037,7]
[426452689,1782406286000,-2106.95924981,0.00037,120]
[426452694,1782406286000,-242.02382431,0.00037,120]
[426452691,1782406286000,-227.97096693,0.00037,120]
[426452690,1782406286000,-36883.1643843,0.00037,120]
[426452695,1782406286000,-1106.62626759,0.00037,120]
[426452693,1782406286000,-228.81720275,0.00037,30]
[426452697,1782406286000,-500.0,0.00037,13]
[426452707,1782406286000,-8985.25600707,0.00037,30]
[426452702,1782406286000,-655.18947833,0.00037,120]
[426452700,1782406286000,-489.35,0.00037,13]
[426452701,1782406286000,-200.03278982,0.00037,120]
[426452706,1782406286000,-192720.38325593,0.00037,30]
[426452704,1782406286000,-2720.11579,0.00037,30]
[426452705,1782406286000,-5000.0,0.00037,90]
[426452698,1782406286000,-500.0,0.00037,13]
[426452703,1782406286000,-10000.0,0.00037,30]
[426452708,1782406286000,-10026.52601833,0.00037,120]
[426452686,1782406286000,-313.606979,0.00031507,7]
[426452699,1782406286000,-500.0,0.00037,13]
[426452687,1782406286000,-1595.10098,0.00031507,7]
[426452668,1782406286000,-1182.34748725,0.00031507,7]
[426452684,1782406286000,-5007.57840826,0.00037,60]
[426452710,1782406286000,-246.074869,0.00037,7]
[426452663,1782406286000,-459.4891463,0.00037,7]
[426452664,1782406286000,-200.0,0.0002,2]
[426452666,1782406286000,-313.606979,0.00031507,7]
[426452667,1782406286000,-412.75349275,0.00031507,7]
[426452671,1782406286000,-313.606979,0.00031507,7]
[426452665,1782406286000,-200.0,0.00021,2]
[426452672,1782406286000,-1595.10098,0.00031507,7]
[426452670,1782406286000,-1595.10098,0.00031507,7]
[426452674,1782406286000,-1595.10098,0.00031507,7]
[426452673,1782406286000,-313.606979,0.00031507,7]
[426452669,1782406286000,-313.606979,0.00031507,7]
[426452675,1782406286000,-313.606979,0.00031507,7]
[426452679,1782406286000,-313.606979,0.00031507,7]
[426452681,1782406286000,-2333.0,0.00032226,3]
[426452677,1782406286000,-313.606979,0.00031507,7]
[426452680,1782406286000,-1595.10098,0.00031507,7]
[426452678,1782406286000,-1595.10098,0.00031507,7]
[426452682,1782406286000,-391156.61396226,0.00037,7]
[426452685,1782406286000,-26574.39289893,0.00037,120]
[426452676,1782406286000,-1595.10098,0.00031507,7]
[426452683,1782406286000,-10000.0,0.00037,20]
[426452720,1782406286000,-396.638648,0.00037,7]
[426452745,1782406286000,-330.638637,0.00037,14]
[426452711,1782406286000,-243.074869,0.00037,7]
[426452738,1782406286000,-333.638637,0.00037,7]
[426452739,1782406286000,-330.638637,0.00037,7]
[426452741,1782406286000,-396.638648,0.00037,14]
[426452742,1782406286000,-330.638637,0.00037,14]
[426452743,1782406286000,-327.638637,0.00037,14]
[426452744,1782406286000,-333.638637,0.00037,14]
[426452746,1782406286000,-327.638637,0.00037,14]
[426452747,1782406286000,-333.638637,0.00037,14]
[426452748,1782406286000,-330.638637,0.00037,14]
[426452750,1782406286000,-333.638637,0.00037,14]
[426452749,1782406286000,-327.638637,0.00037,14]
[426452754,1782406286000,-330.638637,0.00037,14]
[426452751,1782406286000,-330.638637,0.00037,14]
[426452753,1782406286000,-333.638637,0.00037,14]
[426452752,1782406286000,-327.638637,0.00037,14]
[426452756,1782406286000,-333.638637,0.00037,14]
[426452758,1782406286000,-327.638637,0.00037,14]
[426452755,1782406286000,-327.638637,0.00037,14]
[426452757,1782406286000,-330.638637,0.00037,14]
[426452759,1782406286000,-333.638637,0.00037,14]
[426452760,1782406286000,-330.638637,0.00037,14]
[426452736,1782406286000,-330.638637,0.00037,7]
[426452737,1782406286000,-327.638637,0.00037,7]
[426452740,1782406286000,-327.638637,0.00037,7]
[426452733,1782406286000,-330.638637,0.00037,7]
[426452714,1782406286000,-243.074869,0.00037,14]
[426452715,1782406286000,-190.1897047,0.00037,120]
[426452712,1782406286000,-258.07487,0.00037,14]
[426452713,1782406286000,-246.074869,0.00037,14]
[426452717,1782406286000,-733.92,0.00037,90]
[426452716,1782406286000,-10000.0,0.00037,2]
[426452735,1782406286000,-333.638637,0.00037,7]
[426452718,1782406286000,-500.0,0.00037,90]
[426452722,1782406286000,-327.638637,0.00037,7]
[426452732,1782406286000,-333.638637,0.00037,7]
[426452721,1782406286000,-330.638637,0.00037,7]
[426452719,1782406286000,-981.6201,0.00037,120]
[426452724,1782406286000,-330.638637,0.00037,7]
[426452723,1782406286000,-333.638637,0.00037,7]
[426452729,1782406286000,-333.638637,0.00037,7]
[426452730,1782406286000,-330.638637,0.00037,7]
[426452731,1782406286000,-327.638637,0.00037,7]
[426452734,1782406286000,-327.638637,0.00037,7]
[426452727,1782406286000,-330.638637,0.00037,7]
[426452728,1782406286000,-327.638637,0.00037,7]
[426452725,1782406286000,-327.638637,0.00037,7]
[426452726,1782406286000,-333.638637,0.00037,7]
[426452709,1782406286000,-258.07487,0.00037,7]
[426452772,1782406287000,-300.0,0.00037,30]
[426452765,1782406287000,-3000.0,0.00037,30]
[426452764,1782406287000,-3000.0,0.00037,30]
[426452763,1782406287000,-3000.0,0.00037,30]
[426452762,1782406287000,-223.4358602,0.00037,7]
[426452761,1782406287000,-327.638637,0.00037,14]
[426452766,1782406287000,-3000.0,0.00037,30]
[426452768,1782406287000,-400.0,0.00037,30]
[426452769,1782406287000,-5155.69,0.00037,120]
[426452771,1782406287000,-10000.0,0.00037,30]
[426452777,1782406287000,-21210.30172275,0.00037,120]
[426452773,1782406287000,-270.0,0.00037,7]
[426452778,1782406287000,-170.20971757,0.00037,120]
[426452779,1782406287000,-84441.92006881,0.00037,30]
[426452775,1782406287000,-398.0304665,0.00037,120]
[426452780,1782406287000,-7582.48530083,0.00037,30]
[426452776,1782406287000,-5000.0,0.00037,120]
[426452770,1782406287000,-136086.74511266,0.00037,30]
[426452767,1782406287000,-431.22838055,0.00037,30]
[426452774,1782406287000,-10692.65130101,0.00037,60]
[426452787,1782406364000,-1000000.0,0.00037232,120]
[426452781,1782406364000,-348225.93272401,0.00037232,120]
[426452782,1782406364000,-1000000.0,0.00037232,120]
[426452783,1782406364000,-1000000.0,0.00037232,120]
[426452786,1782406364000,-1000000.0,0.00037232,120]
[426452785,1782406364000,-1000000.0,0.00037232,120]
[426452784,1782406364000,-1000000.0,0.00037232,120]
[426452790,1782406364000,-500.0,0.00037232,120]
[426452788,1782406364000,-1000000.0,0.00037232,120]
[426452792,1782406364000,-500.0,0.00037232,120]
[426452791,1782406364000,-500.0,0.00037232,120]
[426452793,1782406364000,-500.0,0.00037232,120]
[426452794,1782406364000,-500.0,0.00037232,120]
[426452795,1782406364000,-500.0,0.00037232,120]
[426452796,1782406364000,-500.0,0.00037232,120]
[426452797,1782406364000,-500.0,0.00037232,120]
[426452789,1782406364000,-1000000.0,0.00037232,120]
[426452802,1782406365000,-500.0,0.00037232,120]
[426452798,1782406365000,-500.0,0.00037232,120]
[426452799,1782406365000,-500.0,0.00037232,120]
[426452800,1782406365000,-500.0,0.00037232,120]
[426452803,1782406365000,-500.0,0.00037232,120]
[426452801,1782406365000,-500.0,0.00037232,120]
[426452810,1782406365000,-151.0,0.00037232,120]
[426452806,1782406365000,-500.0,0.00037232,120]
[426452805,1782406365000,-500.0,0.00037232,120]
[426452807,1782406365000,-500.0,0.00037232,120]
[426452808,1782406365000,-500.0,0.00037232,120]
[426452809,1782406365000,-532.94172805,0.00037232,120]
[426452804,1782406365000,-500.0,0.00037232,120]
[426452811,1782406370000,896.72,0.00037232,120]
[426452812,1782406377000,2595.69,0.00037232,120]
[426452813,1782406384000,1218.86,0.00037232,120]
[426452814,1782406391000,2200.08,0.00037232,120]
[426452815,1782406392000,272.28829,0.0002,120]
[426452816,1782406392000,272.28829,0.00025,120]
[426452817,1782406398000,369.66,0.00037232,120]
[426452818,1782406405000,1678.48,0.00037232,120]
[426452825,1782406411000,-161.0,0.00029616,30]
[426452819,1782406411000,-158.76,0.00025711,30]
[426452820,1782406411000,-248.53,0.00025981,30]
[426452822,1782406411000,-158.0,0.00028616,30]
[426452821,1782406411000,-158.76,0.00027292,30]
[426452824,1782406411000,-158.0,0.00029616,30]
[426452823,1782406411000,-161.0,0.00028616,30]
[426452826,1782406411000,-272.28829,0.0003,30]
[426452835,1782406411000,-422.65,0.00030716,30]
[426452828,1782406411000,-150.86,0.00030266,30]
[426452829,1782406411000,-422.65,0.00030322,30]
[426452830,1782406411000,-164.64,0.00030386,30]
[426452831,1782406411000,-164.64,0.00030474,30]
[426452832,1782406411000,-164.71,0.00030561,30]
[426452833,1782406411000,-158.0,0.00030616,30]
[426452834,1782406411000,-161.0,0.00030616,30]
[426452827,1782406411000,-152.6,0.00030264,30]
[426452852,1782406412000,-158.0,0.00033616,30]
[426452853,1782406412000,-161.0,0.00033616,30]
[426452850,1782406412000,-165.69,0.00032799,30]
[426452851,1782406412000,-159.99,0.000334,30]
[426452849,1782406412000,-161.0,0.00032616,30]
[426452846,1782406412000,-161.0,0.00031616,30]
[426452847,1782406412000,-165.69,0.00031895,30]
[426452844,1782406412000,-1485.85,0.00031506,30]
[426452840,1782406412000,-1442.15,0.00031095,30]
[426452842,1782406412000,-150.0,0.000315,30]
[426452843,1782406412000,-1442.18,0.00031506,30]
[426452854,1782406412000,-165.69,0.00033703,30]
[426452841,1782406412000,-581.61,0.00031113,30]
[426452838,1782406412000,-165.69,0.0003099,30]
[426452839,1782406412000,-1485.81,0.00031094,30]
[426452836,1782406412000,-581.61,0.00030719,30]
[426452837,1782406412000,-150.86,0.00030731,30]
[426452845,1782406412000,-158.0,0.00031616,30]
[426452855,1782406412000,-162.25,0.000341,30]
[426452848,1782406412000,-158.0,0.00032616,30]
[426452856,1782406412000,-165.69,0.00034607,30]
[426452857,1782406412000,-158.0,0.00034616,30]
[426452875,1782406412000,-1500.0,0.00036814,30]
[426452874,1782406412000,-1500.0,0.00036814,30]
[426452873,1782406412000,-1500.0,0.00036814,30]
[426452871,1782406412000,-1500.0,0.00036814,30]
[426452872,1782406412000,-1500.0,0.00036814,30]
[426452869,1782406412000,-1500.0,0.00036814,30]
[426452870,1782406412000,-1500.0,0.00036814,30]
[426452867,1782406412000,-162.25,0.000357,30]
[426452868,1782406412000,-1500.0,0.00036814,30]
[426452876,1782406412000,-1500.0,0.00036814,30]
[426452866,1782406412000,-165.69,0.00035512,30]
[426452865,1782406412000,-159.99,0.000355,30]
[426452859,1782406412000,-3093.8892851,0.000353,30]
[426452861,1782406412000,-100000.0,0.00035455,30]
[426452860,1782406412000,-3093.88928508,0.000353,30]
[426452858,1782406412000,-272.28829,0.00035,30]
[426452864,1782406412000,-100000.0,0.00035455,60]
[426452863,1782406412000,-100000.0,0.00035455,90]
[426452862,1782406412000,-100000.0,0.00035455,120]
[426452896,1782406413000,-5000.0,0.00037,120]
[426452886,1782406413000,-18000.0,0.00037,120]
[426452893,1782406413000,-800.0,0.00037,45]
[426452894,1782406413000,-800.0,0.00037,45]
[426452890,1782406413000,-1000.0,0.00037,30]
[426452891,1782406413000,-800.0,0.00037,45]
[426452889,1782406413000,-30806.06585852,0.00037,60]
[426452887,1782406413000,-18000.0,0.00037,120]
[426452888,1782406413000,-18900.0,0.00037,120]
[426452883,1782406413000,-9517.77521374,0.00037,82]
[426452885,1782406413000,-18000.0,0.00037,120]
[426452882,1782406413000,-17531.20306169,0.00037,120]
[426452881,1782406413000,-1000.0,0.00037,120]
[426452880,1782406413000,-325313.09,0.00037,30]
[426452878,1782406413000,-350.0,0.00037,120]
[426452879,1782406413000,-318.59645755,0.00037,30]
[426452877,1782406413000,-194486.06686342,0.00037,30]
[426452895,1782406413000,-800.0,0.00037,45]
[426452884,1782406413000,-72177.0,0.00037,120]
[426452898,1782406413000,-5000.0,0.00037,30]
[426452892,1782406413000,-800.0,0.00037,45]
[426452900,1782406413000,-1040.76531132,0.00037,120]
[426452897,1782406413000,-5000.0,0.00037,60]
[426452917,1782406413000,-238.63973815,0.00037041,120]
[426452916,1782406413000,-171.0,0.0003702,120]
[426452915,1782406413000,-150.0,0.00037013,120]
[426452914,1782406413000,-202.41,0.00037012,60]
[426452912,1782406413000,-5000.0,0.00037009,30]
[426452913,1782406413000,-545.80031875,0.00037011,60]
[426452910,1782406413000,-8942.0,0.00037,117]
[426452911,1782406413000,-4902.90206295,0.00037,30]
[426452908,1782406413000,-2266.0,0.00037,120]
[426452918,1782406413000,-571.86504398,0.00037041,120]
[426452907,1782406413000,-2121.0,0.00037,120]
[426452906,1782406413000,-800.0,0.00037,45]
[426452905,1782406413000,-800.0,0.00037,45]
[426452904,1782406413000,-10000.0,0.00037,120]
[426452919,1782406413000,-9461.21,0.00037046,120]
[426452903,1782406413000,-250.0,0.00037,120]
[426452901,1782406413000,-3413.50603594,0.00037,120]
[426452902,1782406413000,-27958.92,0.00037,120]
[426452899,1782406413000,-500000.0,0.00037,120]
[426452909,1782406413000,-1260.0,0.00037,120]
[426452932,1782406414000,-5000.0,0.000371,90]
[426452933,1782406414000,-5000.0,0.000371,90]
[426452934,1782406414000,-3000.0,0.000371,90]
[426452938,1782406414000,-12014.8568,0.000371,120]
[426452936,1782406414000,-155.6657,0.000371,60]
[426452937,1782406414000,-1489.41,0.000371,120]
[426452930,1782406414000,-5000.0,0.000371,90]
[426452935,1782406414000,-8624.510144,0.000371,90]
[426452931,1782406414000,-5000.0,0.000371,90]
[426452924,1782406414000,-173.17276612,0.00037091,120]
[426452928,1782406414000,-5000.0,0.00037097,30]
[426452927,1782406414000,-213.00558773,0.00037093,120]
[426452926,1782406414000,-211.78626792,0.00037093,120]
[426452925,1782406414000,-211.23710555,0.00037093,120]
[426452923,1782406414000,-10000.0,0.0003709,30]
[426452922,1782406414000,-1473.51,0.00037082,120]
[426452921,1782406414000,-171.3,0.00037057,60]
[426452920,1782406414000,-5000.0,0.00037053,30]
[426452929,1782406414000,-301.47206489,0.000371,120]
[426452939,1782406414000,-2320.4968,0.000371,30]
[426452941,1782406414000,-1546.093,0.000371,120]
[426452942,1782406414000,-1546.09,0.000371,120]
[426452940,1782406414000,-1546.093,0.000371,120]
[426452960,1782406414000,-30000.0,0.000372,30]
[426452959,1782406414000,-271.28,0.0003719,120]
[426452958,1782406414000,-2215.82,0.0003719,120]
[426452957,1782406414000,-5097.67,0.00037188,120]
[426452956,1782406414000,-5000.0,0.00037185,30]
[426452954,1782406414000,-203.59,0.00037164,60]
[426452953,1782406414000,-170.3,0.00037157,60]
[426452952,1782406414000,-315.98,0.00037144,30]
[426452955,1782406414000,-376.00506888,0.00037178,60]
[426452950,1782406414000,-5000.0,0.00037141,30]
[426452951,1782406414000,-300.0,0.00037144,30]
[426452944,1782406414000,-1549.55,0.000371,120]
[426452945,1782406414000,-171.3,0.00037107,60]
[426452946,1782406414000,-202.91,0.00037116,60]
[426452943,1782406414000,-1549.557,0.000371,120]
[426452948,1782406414000,-150.0,0.00037125,120]
[426452949,1782406414000,-150.0,0.00037125,120]
[426452947,1782406414000,-714.38959601,0.0003712,120]
[426452972,1782406415000,-445.63671889,0.000372,120]
[426452978,1782406415000,-2551.82,0.00037225,30]